[Event "21st IPCA World Championship 2022"]
[Site "Ashdod"]
[Date "2022.05.13"]
[Round "6.5"]
[White "Srimskov, Elishar"]
[Black "Lipilin, Ilia"]
[Result "0-1"]
[ECO "C40"]
[WhiteElo "1992"]
[BlackElo "2198"]
[Annotator "TA"]
[PlyCount "70"]
[EventDate "2022.05.09"]
[EventType "swiss"]
[EventCountry "ISR"]
[SourceTitle "playchess.com"]
[Source "ChessBase"]
[SourceQuality "1"]
[TimeControl "5400+30"]

{[%evp 9,69,-16,-18,-47,-3,-45,-49,-37,-17,-47,-21,-18,-22,-44,0,-10,-12,-29,19,-28,19,20,15,16,14,0,0,0,0,0,14,0,0,0,0,0,0,-29,-29,-60,-60,-60,-60,-60,-53,-52,-39,-40,-36,-40,-20,-45,-39,-45,-36,-660,-652,-541,-512,-29998,-29999,-29999]} 1. Nf3 {[%emt 0:00:16]} f5 {[%emt 0:00:09]} 2. d3 {[%emt 0:01:30]} Nc6 {[%emt 0:00:11]} 3. e4 {[%emt 0:00:33]} e5 {[%emt 0:00:10]} 4. Nc3 {[%emt 0:00:55]} Nf6 {[%emt 0:00:16]} 5. Bg5 {[%emt 0:00:48]} Bb4 {[%emt 0:01:41]} 6. Be2 {[%emt 0:03:07] C40: Latvian and Elephant Gambits.} O-O {[%emt 0:00:56]} 7. O-O {[%emt 0:00:22]} Bxc3 {[%emt 0:03:33]} 8. bxc3 {[%emt 0:00:09] Black is slightly better.} h6 {[%emt 0:00:42] [#]} 9. Bc1 $146 {[%emt 0:02:26]} ({Predecessor:} 9. Bxf6 Qxf6 10. exf5 d6 11. Rb1 Rb8 12. Nd2 Bxf5 13. Bf3 Nd8 14. Bd5+ Be6 15. Ne4 {0-1 (32) Ellenbroek,T (2117)-Naes,F (2223) Hoogeveen 2001}) 9... d6 {[%emt 0:04:57]} 10. exf5 {[%emt 0:04:37]} Bxf5 {[%emt 0:00:04]} 11. Nh4 {[%emt 1:21:17]} Be6 {[%emt 0:01:18]} (11... Bh7 $5 {[%cal Rf6d5]} 12. Bb2 Nd7 $11) 12. Ng6 {[%emt 0:00:00]} Re8 {[%emt 0:06:47]} 13. f4 {[%emt 0:00:00]} Nd5 {[%emt 0:07:27]} (13... e4 {was preferrable.}) 14. Qe1 {[%emt 0:00:00]} ({But not} 14. fxe5 Nxc3 15. Qe1 Nxe2+ 16. Qxe2 Bf7 $17) (14. Bd2 $142) 14... exf4 {[%emt 0:10:19]} (14... Bf7 {should be considered.} 15. f5 e4) 15. Nxf4 $11 {[%emt 0:00:00]} Nxf4 {[%emt 0:00:46]} 16. Rxf4 {[%emt 0:00:00]} Qe7 {[%emt 0:02:36]} 17. Bh5 {[%emt 0:00:00]} Bf7 {[%emt 0:03:10]} 18. Qxe7 {[%emt 0:00:00]} Rxe7 {[%emt 0:00:13]} 19. Bf3 {[%emt 0:00:00]} Re1+ {[%emt 0:04:09]} 20. Kf2 {[%emt 0:00:00]} Rae8 {[%emt 0:01:37]} 21. Re4 {[%emt 0:00:00]} R8xe4 {[%emt 0:05:09]} 22. Bxe4 {[%emt 0:00:00]} Rh1 {[%emt 0:00:17]} 23. c4 {[%emt 0:00:00]} Nb4 {[%emt 0:03:18]} 24. Rb1 {[%emt 0:00:00] [#]} b6 $1 {[%emt 0:01:54]} 25. Rxb4 {[%emt 0:00:00]} Rxc1 $15 {[%emt 0:00:13][%mdl 4096] Endgame KRB-KRB} 26. Rb2 {[%emt 0:00:00]} Be8 {[%emt 0:00:37]} 27. Ke3 {[%emt 0:00:00]} Ba4 {[%emt 0:00:20]} 28. Kd2 {[%emt 0:00:00]} Rh1 {[%emt 0:00:20]} 29. h3 {[%emt 0:00:00]} Kf7 {[%emt 0:04:08]} 30. c3 {[%emt 0:00:00]} Kf6 {[%emt 0:05:12]} 31. Ke3 {[%emt 0:00:00]} Re1+ {[%emt 0:01:22]} 32. Kd4 $2 {[%emt 0:00:00][%mdl 8192] This move loses the game for White.} (32. Re2 $15 Rxe2+ 33. Kxe2) 32... Ke6 $19 {[%emt 0:02:53][%csl Gb6,Gd6][%cal Rc7c5]} 33. Bd5+ {[%emt 0:00:00]} Kd7 {[%emt 0:00:16][%csl Gb6,Gd6][%cal Rc7c5]} 34. Ba8 {[%emt 0:00:00] [#]} (34. c5 $19 dxc5+ 35. Kc4) 34... c5+ {[%emt 0:00:12]} 35. Kd5 {[%emt 0:00:00]} Re5# {[%emt 0:00:21] Weighted Error Value: White=0.61/Black=0.10 (very precise)} 0-1

[Event "21st IPCA World Championship 2022"]
[Site "Ashdod"]
[Date "2022.05.13"]
[Round "6.6"]
[White "Aleksandrova, Aleksandra"]
[Black "Alperovich, Asher"]
[Result "0-1"]
[ECO "A45"]
[WhiteElo "1687"]
[BlackElo "1865"]
[Annotator "NA RC COMBH"]
[PlyCount "90"]
[EventDate "2022.05.09"]
[EventType "swiss"]
[EventCountry "ISR"]
[SourceTitle "playchess.com"]
[Source "ChessBase"]
[SourceQuality "1"]
[TimeControl "5400+30"]

1. d4 {[%emt 0:00:01]} Nf6 {[%emt 0:00:12]} 2. Nd2 {[%emt 0:00:11]} d5 {[%emt 0:00:43]} 3. e3 {[%emt 0:00:23]} c5 {[%emt 0:00:20]} 4. dxc5 {[%emt 0:03:02]} g6 {[%emt 0:01:26]} 5. Nb3 {[%emt 0:01:09]} Bg7 {[%emt 0:01:02]} 6. Nf3 {[%emt 0:02:04]} O-O {[%emt 0:02:32]} 7. Bd3 $11 {[%emt 0:02:26]} Na6 {[%emt 0:03:51]} 8. Qe2 {[%emt 0:05:26]} Qc7 {[%emt 0:05:29] Decoy} 9. Bxa6 {[%emt 0:03:41]} bxa6 {[%emt 0:00:24]} 10. Bd2 {[%emt 0:00:24]} Ne4 {[%emt 0:04:52]} 11. Ba5 {[%emt 0:00:57]} Qc6 {[%emt 0:03:19]} 12. Nfd4 {[%emt 0:02:21]} Qa4 {[%emt 0:01:18]} 13. Bc7 {[%emt 0:08:12]} ({Better is} 13. c3 $11) 13... Bd7 {[%emt 0:10:35]} 14. O-O {[%emt 0:07:49]} Rac8 {[%emt 0:03:15]} 15. f3 {[%emt 0:02:06]} (15. Ba5 $1 $11) 15... Rxc7 {[%emt 0:04:30]} 16. fxe4 {[%emt 0:00:49]} e5 {[%emt 0:05:13]} 17. c6 {[%emt 0:03:12]} Bc8 {[%emt 0:20:09]} 18. Nc5 {[%emt 0:24:33]} Qb4 {[%emt 0:12:33]} 19. Nd3 {[%emt 0:02:23]} Qc4 {[%emt 0:02:02]} 20. b3 {[%emt 0:01:24]} Qc3 {[%emt 0:01:13]} 21. exd5 {[%emt 0:01:01]} exd4 {[%emt 0:00:54]} 22. e4 {[%emt 0:00:08]} Re8 {[%emt 0:01:51]} ({Black should try} 22... Bh6 $17 23. Kh1 Be3) 23. g4 {[%emt 0:15:51]} Rce7 {[%emt 0:03:18]} 24. Qf3 {[%emt 0:04:26]} Rxe4 {[%emt 0:01:37]} 25. Qxf7+ {[%emt 0:01:11]} Kh8 {[%emt 0:00:02]} 26. h3 {[%emt 0:03:45]} Qxc2 {[%emt 0:03:05]} 27. Nf2 {[%emt 0:00:37]} R4e7 {[%emt 0:00:54]} 28. Qf3 {[%emt 0:00:36]} Qc3 {[%emt 0:01:47]} 29. Qxc3 {[%emt 0:01:47]} dxc3 {[%emt 0:00:02]} 30. d6 {[%emt 0:00:12]} Rd7 {[%emt 0:05:04]} 31. cxd7 {[%emt 0:00:58]} Bxd7 {[%emt 0:00:15]} 32. Rae1 {[%emt 0:01:27]} Be5 {[%emt 0:01:44]} 33. Ne4 {[%emt 0:01:39]} Kg7 {[%emt 0:00:40]} 34. Nc5 {[%emt 0:00:33]} Bd4+ {[%emt 0:00:23]} 35. Kh2 {[%emt 0:00:34]} Bxc5 {[%emt 0:00:22]} 36. Rxe8 {[%emt 0:00:33]} Bxe8 {[%emt 0:00:08]} 37. Re1 {[%emt 0:00:35]} Bxd6+ {[%emt 0:00:29]} 38. Kg2 {[%emt 0:00:19]} Bc6+ {[%emt 0:00:37]} 39. Kf2 {[%emt 0:00:04]} c2 {[%emt 0:00:39]} 40. Rc1 {[%emt 0:00:14]} Bc5+ {[%emt 0:00:49]} 41. Ke2 {[%emt 0:00:29]} Be4 {[%emt 0:00:23]} 42. Kd2 {[%emt 0:01:18]} Ba3 {[%emt 0:00:45]} 43. Rxc2 {[%emt 0:00:29]} Bxc2 {[%emt 0:00:09]} 44. Kxc2 {[%emt 0:00:02]} Kf6 {[%emt 0:00:25]} 45. Kd3 {[%emt 0:00:25]} Kg5 {[%emt 0:00:20]} 0-1

[Event "21st IPCA World Championship 2022"]
[Site "Ashdod"]
[Date "2022.05.13"]
[Round "6.7"]
[White "Gerasimova, Svetlana"]
[Black "Cosic, Radoslav"]
[Result "0-1"]
[ECO "B06"]
[WhiteElo "1906"]
[BlackElo "2003"]
[Annotator "TA"]
[PlyCount "76"]
[EventDate "2022.05.09"]
[EventType "swiss"]
[EventCountry "ISR"]
[SourceTitle "playchess.com"]
[Source "ChessBase"]
[SourceQuality "1"]
[TimeControl "5400+30"]

{[%evp 10,76,41,39,62,43,42,51,44,44,72,39,46,42,47,30,317,317,278,306,368,385,356,346,354,199,200,202,194,177,201,98,93,48,19,4,96,95,87,94,69,-37,-41,-37,0,0,0,-169,-172,-287,-277,-291,-287,-458,-350,-449,-428,-496,-496,-728,-694,-950,-851,-2179,-769,-1093,-933,-29987,-29980]} 1. e4 {[%emt 0:00:03]} d6 {[%emt 0:00:13]} 2. d4 {[%emt 0:00:10]} g6 {[%emt 0:00:13]} 3. Nc3 {[%emt 0:00:08]} Bg7 {[%emt 0:00:02]} 4. Be3 {[%emt 0:00:14]} a6 {[%emt 0:00:29]} 5. Qd2 {[%emt 0:00:50]} b5 {[%emt 0:00:06]} 6. f3 {[%emt 0:07:41]} e6 {[%emt 0:01:09] B06: Modern Defence.} 7. h4 {[%emt 0:01:29]} h5 {[%emt 0:00:29]} 8. O-O-O {[%emt 0:02:56]} (8. Bg5 {keeps more tension.} Ne7 9. O-O-O Nd7 10. Nh3) 8... Nd7 {[%emt 0:00:21] White is slightly better.} 9. Nh3 {[%emt 0:01:56]} (9. Bg5 {looks sharper.} Ne7 10. Kb1 c5 11. dxc5 dxc5 12. Qd6) 9... Nb6 {[%emt 0:00:16]} 10. Ng5 {[%emt 0:03:44]} Nf6 {[%emt 0:00:50] [#]} 11. Qf2 $146 {[%emt 0:04:06]} ({Predecessor:} 11. Bd3 Qe7 12. Kb1 Nfd7 13. f4 b4 14. Ne2 c5 15. dxc5 dxc5 16. e5 Bb7 17. Be4 {½-½ (48) Dvirnyy,D (2536)-Bachmann,A (2614) Barcelona 2015}) 11... O-O {[%emt 0:03:47]} 12. g4 {[%emt 0:01:07]} Nc4 $2 {[%emt 0:00:53][%mdl 8192] Prevents e5.} (12... hxg4 13. a3 gxf3) (12... hxg4 $11 13. a3 gxf3) 13. Bxc4 $18 {[%emt 0:02:25]} bxc4 {[%emt 0:00:03]} 14. e5 {[%emt 0:00:33]} dxe5 {[%emt 0:00:21]} 15. dxe5 {[%emt 0:00:22]} Nd5 {[%emt 0:00:02]} 16. gxh5 {[%emt 0:07:09]} Bxe5 {[%emt 0:00:16]} 17. f4 {[%emt 0:00:40]} (17. Nge4) (17. Nge4 $142) 17... Bxc3 {[%emt 0:02:35]} 18. bxc3 {[%emt 0:00:36] And now hxg6 would win.} Qf6 {[%emt 0:00:51]} 19. Ne4 {[%emt 0:07:12]} Qf5 {[%emt 0:01:26] [#]} 20. Ng3 {[%emt 0:01:57]} (20. Rd4 $1 $18 {has better winning chances.}) 20... Qg4 $16 {[%emt 1:26:08]} 21. Rxd5 {[%emt 0:05:30]} exd5 {[%emt 0:00:00]} 22. Bd4 {[%emt 0:01:03] With the idea Rg1.} Re8 {[%emt 0:00:00]} (22... gxh5 $2 23. Rg1 Kh7 24. Ne2 Qxg1+ 25. Nxg1 $18) (22... Bd7 $1 $11) 23. hxg6 {[%emt 0:00:43]} fxg6 {[%emt 0:00:00]} 24. h5 {[%emt 0:00:25]} g5 {[%emt 0:00:00]} 25. fxg5 {[%emt 0:04:44]} (25. h6 $1 $14 Kh7 26. Nh5 (26. fxg5 Qxg5+ 27. Kb1 Be6 $11)) 25... Qxg5+ $15 {[%emt 0:00:00]} 26. Kb1 {[%emt 0:00:22]} Rb8+ {[%emt 0:00:00]} (26... c5 $5 27. Rg1 (27. Rf1 Ra7 $17) 27... Rb8+ 28. Ka1 Bg4 29. Bxc5 Qg7 $17) 27. Ka1 {[%emt 0:00:04]} Rf8 {[%emt 0:00:00]} 28. Qe1 {[%emt 0:00:28]} (28. h6 Rf7 29. Ne2) (28. h6 $11 {and White has nothing to worry.} Rf7 29. Ne2) 28... Bg4 $19 {[%emt 0:00:00]} 29. h6 {[%emt 0:09:45] [#]} (29. Rg1 $142) 29... Kh7 $1 {[%emt 0:00:00]} 30. Nf1 {[%emt 0:02:38]} Rbe8 {[%emt 0:00:00]} 31. Qb1 {[%emt 0:00:11]} (31. Ne3 {was the only defense.}) 31... Qf4 {[%emt 0:00:00]} 32. Nh2 {[%emt 0:03:37]} Bh5 {[%emt 0:00:00] Hoping for ...Re2.} 33. Qb7 {[%emt 0:04:42]} Qd6 {[%emt 0:00:00] ...Rb8 is the strong threat.} 34. Qa7 {[%emt 0:03:52]} (34. Rg1 $142) 34... Rf7 {[%emt 0:00:00]} 35. Bc5 {[%emt 0:05:07]} Qc6 {[%emt 0:00:00] White must now prevent ...Ra8.} 36. Be3 {[%emt 0:00:25]} Qe6 {[%emt 0:00:00]} (36... d4 $142 37. Rf1 dxe3) 37. Re1 {[%emt 0:02:52]} Qd6 {[%emt 0:00:00] aiming for ...Qa3.} 38. Nf1 {[%emt 0:00:47]} c5 {[%emt 0:00:00] Quite a comeback for Black.  Weighted Error Value: White=1.08/Black=0.56} 0-1

[Event "21st IPCA World Championship 2022"]
[Site "Ashdod"]
[Date "2022.05.13"]
[Round "6.8"]
[White "Shapiro, Benny"]
[Black "Oliel, Yehonatan"]
[Result "1-0"]
[ECO "E16"]
[WhiteElo "1884"]
[BlackElo "1535"]
[Annotator "NA RC COMBH"]
[PlyCount "51"]
[EventDate "2022.05.09"]
[EventType "swiss"]
[EventCountry "ISR"]
[SourceTitle "playchess.com"]
[Source "ChessBase"]
[SourceQuality "1"]
[TimeControl "5400+30"]

1. d4 {[%emt 0:00:46]} Nf6 {[%emt 0:01:10]} 2. Nf3 {[%emt 0:00:03]} e6 {[%emt 0:00:39]} 3. c4 {[%emt 0:01:05]} b6 {[%emt 0:00:33]} 4. g3 {[%emt 0:00:17]} Bb7 {[%emt 0:00:40]} 5. Bg2 {[%emt 0:00:55]} c5 {[%emt 0:01:16]} 6. d5 {[%emt 0:00:29]} exd5 {[%emt 0:03:38]} 7. Nh4 {[%emt 0:00:32]} d6 {[%emt 0:03:14]} 8. Nc3 {[%emt 0:01:30]} Nc6 {[%emt 0:02:05]} 9. cxd5 {[%emt 0:00:59]} Ne7 {[%emt 0:01:42]} 10. Bg5 {[%emt 0:01:25]} Ng6 {[%emt 0:01:43]} 11. Nf5 $16 {[%emt 0:07:35]} h6 {[%emt 0:00:52]} 12. Bxf6 {[%emt 0:01:16]} Qxf6 {[%emt 0:01:22]} 13. Qa4+ {[%emt 0:00:27]} Kd8 {[%emt 0:01:18]} 14. Bh3 {[%emt 0:01:04]} a6 {[%emt 0:11:06] [#]} 15. Nxg7 $1 {[%emt 0:05:36]} Qe7 {[%emt 0:03:22]} 16. Nf5 {[%emt 0:01:41]} Qc7 {[%emt 0:03:07]} 17. f4 {[%emt 0:03:50]} Ne7 {[%emt 0:02:15]} 18. Nxd6 {[%emt 0:06:59]} Qxd6 {[%emt 0:03:48] [#]} 19. Ne4 $1 {[%emt 0:00:36]} ({Weaker is} 19. e4 b5 20. Qc2 Bg7 $11) 19... Qc7 {[%emt 0:06:18]} 20. d6 {[%emt 0:01:01]} Qc6 {[%emt 0:04:55]} 21. dxe7+ {[%emt 0:00:29]} Bxe7 {[%emt 0:01:02]} 22. O-O-O+ {[%emt 0:00:36]} Kc7 {[%emt 0:06:02]} 23. Rd7+ {[%emt 0:01:57]} Kb8 {[%emt 0:00:25]} 24. Qxc6 {[%emt 0:00:18]} Bxc6 {[%emt 0:00:24]} 25. Rxe7 {[%emt 0:00:10]} Rd8 {[%emt 0:01:27]} 26. Rd1 {[%emt 0:00:29]} 1-0

[Event "21st IPCA World Championship 2022"]
[Site "Ashdod"]
[Date "2022.05.13"]
[Round "6.9"]
[White "Freiberg, Doron"]
[Black "Mekus, Manuela"]
[Result "0-1"]
[ECO "E67"]
[WhiteElo "1244"]
[BlackElo "1644"]
[Annotator "NA RC COMBH"]
[PlyCount "82"]
[EventDate "2022.05.09"]
[EventType "swiss"]
[EventCountry "ISR"]
[SourceTitle "playchess.com"]
[Source "ChessBase"]
[SourceQuality "1"]
[TimeControl "5400+30"]

1. d4 {[%emt 0:00:12]} Nf6 {[%emt 0:00:27]} 2. Nf3 {[%emt 0:00:05]} g6 {[%emt 0:00:09]} 3. g3 {[%emt 0:00:30]} Bg7 {[%emt 0:00:10]} 4. Bg2 {[%emt 1:31:43]} d6 {[%emt 0:00:15]} 5. O-O {[%emt 0:00:00]} O-O {[%emt 0:00:14]} 6. c4 {[%emt 0:00:00]} Nbd7 {[%emt 0:00:51]} 7. Nc3 {[%emt 0:00:00]} e5 {[%emt 0:01:08]} 8. d5 {[%emt 0:00:00]} a5 {[%emt 0:01:33]} 9. Bg5 {[%emt 0:00:00]} h6 {[%emt 0:04:54]} 10. Bd2 {[%emt 0:00:00]} Nc5 {[%emt 0:03:32]} 11. Qc1 {[%emt 0:00:00]} Kh7 {[%emt 0:05:24]} 12. Be3 {[%emt 0:00:00]} Nfe4 {[%emt 0:15:06]} 13. Nd2 {[%emt 0:00:00]} Nxd2 {[%emt 0:02:58]} 14. Qxd2 {[%emt 0:05:00]} f5 {[%emt 0:01:02]} 15. Bxc5 {[%emt 0:00:00]} dxc5 {[%emt 0:00:17]} 16. Na4 {[%emt 0:00:00]} Qd6 {[%emt 0:00:53]} 17. Nc3 {[%emt 0:00:00]} c6 {[%emt 0:04:41]} 18. Rad1 {[%emt 0:00:00]} e4 {[%emt 0:01:14]} 19. f3 {[%emt 0:00:00]} e3 {[%emt 0:01:59]} 20. Qc2 {[%emt 0:00:00]} Bd4 {[%emt 0:00:33]} 21. dxc6 {[%emt 0:00:00]} bxc6 {[%emt 0:06:11]} 22. f4 {[%emt 0:04:00]} Rb8 {[%emt 0:00:51]} 23. Kh1 {[%emt 0:00:30]} Be6 {[%emt 0:02:55]} 24. Rf3 {[%emt 0:00:00]} Qc7 {[%emt 0:07:37]} 25. b3 {[%emt 0:00:00]} Kg7 {[%emt 0:03:01]} 26. Rb1 {[%emt 0:00:00]} Bd7 {[%emt 0:02:28]} 27. Nd1 {[%emt 0:00:00]} Rbe8 {[%emt 0:00:23]} 28. Qc1 {[%emt 0:00:00]} g5 {[%emt 0:00:17]} 29. fxg5 {[%emt 0:00:00]} hxg5 {[%emt 0:00:02]} 30. Nxe3 {[%emt 0:00:00]} g4 {[%emt 0:00:28]} 31. Nxf5+ {[%emt 0:00:00]} Bxf5 {[%emt 0:00:08]} 32. Qg5+ {[%emt 0:00:00]} Bg6 {[%emt 0:02:25]} 33. Rxf8 {[%emt 0:00:00]} Rxf8 {[%emt 0:00:01]} 34. Be4 {[%emt 0:00:00]} Qd6 {[%emt 0:00:50]} 35. Rd1 {[%emt 0:00:00]} Qe6 {[%emt 0:33:03]} 36. Bd3 {[%emt 0:03:22]} Rf2 {[%emt 0:00:00]} 37. Rc1 {[%emt 0:02:00]} Rxe2 {[%emt 0:00:00]} 38. Rf1 {[%emt 0:01:27]} Re1 {[%emt 0:00:00]} 39. Qxg6+ {[%emt 0:00:38]} Qxg6 {[%emt 0:00:00]} 40. Rxe1 {[%emt 0:01:03]} Qxd3 {[%emt 0:02:30]} 41. Rf1 {[%emt 0:00:30]} Qe2 {[%emt 0:00:30]} 0-1

[Event "21st IPCA World Championship 2022"]
[Site "Ashdod"]
[Date "2022.05.13"]
[Round "6.10"]
[White "Vardi, Moshe"]
[Black "Frumin, Rebeka"]
[Result "1/2-1/2"]
[ECO "C44"]
[WhiteElo "1631"]
[BlackElo "1319"]
[Annotator "NA RC COMBH"]
[PlyCount "41"]
[EventDate "2022.05.09"]
[EventType "swiss"]
[EventCountry "ISR"]
[SourceTitle "playchess.com"]
[Source "ChessBase"]
[SourceQuality "1"]
[TimeControl "5400+30"]

1. e4 {[%emt 0:00:08]} e5 {[%emt 0:00:58]} 2. Nf3 {[%emt 0:00:05]} Nc6 {[%emt 0:02:15]} 3. d4 {[%emt 0:00:05]} exd4 {[%emt 0:01:44]} 4. Bc4 {[%emt 0:00:16]} Bb4+ {[%emt 0:02:21]} 5. c3 {[%emt 0:01:01]} dxc3 6. bxc3 {[%emt 0:00:37]} Bc5 {[%emt 0:03:14]} 7. Ng5 {[%emt 0:00:21]} Ne5 {[%emt 0:02:57]} 8. Bb3 {[%emt 0:06:06]} Nf6 {[%emt 0:04:59]} 9. f4 {[%emt 0:01:42]} Neg4 {[%emt 0:03:35]} 10. Bxf7+ {[%emt 0:00:55]} Kf8 {[%emt 0:00:46]} 11. Ba3 {[%emt 0:00:52]} Qe7 {[%emt 0:02:18]} 12. Bxc5 {[%emt 0:07:01]} Qxc5 {[%emt 0:01:25]} 13. Qf3 {[%emt 0:01:54]} Qe3+ {[%emt 0:01:26]} 14. Qxe3 {[%emt 0:00:54]} Nxe3 {[%emt 0:00:09]} 15. Kd2 {[%emt 0:01:24]} Nxg2 {[%emt 0:00:41]} 16. e5 {[%emt 0:01:20]} Ne8 {[%emt 0:01:30]} 17. Rg1 {[%emt 0:02:33]} Nxf4 {[%emt 0:00:27]} 18. Rf1 {[%emt 0:00:23]} h6 {[%emt 0:01:58]} 19. Ne6+ {[%emt 0:09:58]} Nxe6 {[%emt 0:01:49]} 20. Bxe6+ {[%emt 1:02:55]} Ke7 {[%emt 1:05:58]} 21. Bh3 {[%emt 0:00:30]} 1/2-1/2

[Event "21st IPCA World Championship 2022"]
[Site "Ashdod"]
[Date "2022.05.13"]
[Round "6.11"]
[White "Klein, Djimmy"]
[Black "Shchukina, Ekaterina"]
[Result "1/2-1/2"]
[ECO "D02"]
[WhiteElo "1392"]
[BlackElo "1496"]
[Annotator "NA RC COMBH"]
[PlyCount "137"]
[EventDate "2022.05.09"]
[EventType "swiss"]
[EventCountry "ISR"]
[SourceTitle "playchess.com"]
[Source "ChessBase"]
[SourceQuality "1"]
[TimeControl "5400+30"]

1. d4 {[%emt 0:00:24]} Nf6 {[%emt 0:00:10]} 2. Nf3 {[%emt 0:00:21]} g6 {[%emt 0:00:18]} 3. g3 {[%emt 0:00:09]} Bg7 {[%emt 0:00:09]} 4. Bg2 {[%emt 0:00:09]} O-O {[%emt 0:00:10]} 5. O-O {[%emt 0:00:07]} d5 {[%emt 0:00:19]} 6. Bf4 {[%emt 0:01:47]} c6 {[%emt 0:00:42]} 7. a4 {[%emt 0:03:37]} Nbd7 {[%emt 0:02:29]} 8. Nbd2 {[%emt 0:01:11]} Nh5 {[%emt 0:01:22]} 9. Be3 {[%emt 0:00:54]} e5 {[%emt 0:00:58]} 10. dxe5 {[%emt 1:26:51]} Nxe5 {[%emt 0:00:10]} 11. Bd4 {[%emt 0:00:00]} Nxf3+ {[%emt 0:05:36]} 12. Nxf3 {[%emt 0:00:00]} Nf6 {[%emt 0:00:18]} 13. c3 {[%emt 0:00:00]} Re8 {[%emt 0:07:59]} 14. b4 {[%emt 0:00:00]} Ne4 {[%emt 0:08:27]} 15. Rc1 {[%emt 0:00:00]} a5 {[%emt 0:12:35]} 16. Bxg7 {[%emt 0:00:00]} Kxg7 {[%emt 0:00:14]} 17. Qd4+ {[%emt 0:00:00]} Qf6 {[%emt 0:00:12]} 18. b5 {[%emt 0:00:00]} cxb5 {[%emt 0:16:40]} 19. axb5 {[%emt 0:00:00]} Be6 {[%emt 0:06:20]} 20. Rfd1 {[%emt 0:00:00]} Rac8 {[%emt 0:02:05]} 21. Rd3 {[%emt 0:00:00]} Rc4 {[%emt 0:03:59]} 22. Qxf6+ {[%emt 0:00:00]} Kxf6 {[%emt 0:00:42]} 23. Nd2 {[%emt 0:00:00]} Nxd2 {[%emt 0:00:22]} 24. Rxd2 {[%emt 0:00:00]} Rc5 {[%emt 0:09:57]} 25. Rb2 {[%emt 0:00:00]} Bd7 {[%emt 0:02:08]} 26. b6 {[%emt 0:00:00]} Bc6 {[%emt 0:03:21]} 27. e3 {[%emt 0:00:00]} Ke6 {[%emt 0:04:37]} 28. Kf1 {[%emt 0:00:00]} Bb5+ {[%emt 0:01:36]} 29. Ke1 {[%emt 0:00:00]} Kd6 {[%emt 0:02:58]} 30. Bf1 {[%emt 0:00:00]} Bxf1 {[%emt 0:01:46]} 31. Kxf1 {[%emt 0:00:00]} Rec8 {[%emt 0:00:18]} 32. f3 {[%emt 0:00:00]} Rxc3 {[%emt 0:01:41]} 33. Rxc3 {[%emt 0:00:00]} Rxc3 {[%emt 0:00:14]} 34. Ke2 {[%emt 0:00:00]} Kc6 {[%emt 0:00:54]} 35. Kd2 {[%emt 0:00:00]} Rc5 {[%emt 0:00:53]} 36. Kd3 {[%emt 0:00:00]} Rb5 {[%emt 0:00:10]} 37. Rc2+ {[%emt 0:00:00]} Kxb6 {[%emt 0:00:13]} 38. g4 {[%emt 0:00:00]} Rc5 {[%emt 0:01:34]} 39. Ra2 {[%emt 0:00:00]} Kc6 {[%emt 0:01:14]} 40. f4 {[%emt 0:00:00]} f6 {[%emt 0:00:56]} 41. h4 {[%emt 0:00:00]} h6 {[%emt 0:01:44]} 42. f5 {[%emt 0:00:00]} g5 {[%emt 0:00:49]} 43. hxg5 {[%emt 0:16:30]} hxg5 {[%emt 0:00:12]} 44. Rh2 {[%emt 0:00:00]} Kd6 {[%emt 0:01:17]} 45. Rh8 {[%emt 0:00:00]} Rc4 {[%emt 0:01:08]} 46. Re8 {[%emt 0:00:00]} Rxg4 {[%emt 0:00:22]} 47. Re6+ {[%emt 0:00:00]} Kd7 {[%emt 0:00:07]} 48. Rxf6 {[%emt 0:00:00]} Ke7 {[%emt 0:00:40]} 49. Rb6 {[%emt 0:00:00]} a4 {[%emt 0:00:22]} 50. Rxb7+ {[%emt 0:00:00]} Kf6 {[%emt 0:00:04]} 51. Rb5 {[%emt 0:00:00]} Kxf5 {[%emt 0:00:29]} 52. Rxd5+ {[%emt 0:00:00]} Ke6 {[%emt 0:00:10]} 53. Ra5 {[%emt 0:00:00]} Kf6 {[%emt 0:00:20]} 54. e4 {[%emt 0:00:00]} Rg3+ {[%emt 0:00:18]} 55. Kd4 {[%emt 0:00:00]} a3 {[%emt 0:00:06]} 56. e5+ {[%emt 0:06:30]} Kf5 {[%emt 0:03:36]} 57. Ra6 {[%emt 0:00:30]} Rg4+ {[%emt 0:00:30]} 58. Kd5 {[%emt 0:00:30]} Rg3 {[%emt 0:00:30]} 59. Rf6+ {[%emt 0:00:00]} Kg4 {[%emt 0:00:30]} 60. e6 {[%emt 0:00:00]} a2 {[%emt 0:00:00]} 61. Rf1 {[%emt 0:00:00]} Ra3 {[%emt 0:00:00]} 62. Ra1 {[%emt 0:00:00]} Ra5+ {[%emt 0:00:55]} 63. Kd6 {[%emt 0:00:00]} Ra6+ {[%emt 0:00:12]} 64. Ke7 {[%emt 0:00:00]} Kf5 {[%emt 0:00:23]} 65. Rf1+ {[%emt 0:00:00]} Ke5 {[%emt 0:00:12]} 66. Re1+ {[%emt 0:00:00]} Kd5 {[%emt 0:00:21]} 67. Rd1+ {[%emt 0:00:00]} Ke5 {[%emt 0:01:13]} 68. Re1+ {[%emt 0:00:00]} Kf5 {[%emt 0:00:26]} 69. Rf1+ {[%emt 0:05:30]} 1/2-1/2